bitfinex-derivatives/quotes_SOLF0:USTF0_20250311
["timestamp","ask_amount","ask_price","bid_price","bid_amount"]
[1741704052500,4.2859,119.49,119.41,37.48193619]
[1741704053003,8.3718,119.49,119.41,37.48193619]
[1741704053200,0.05743002,119.46,119.44,0.05531474]
[1741704053406,8.3708,119.5,119.44,0.05531474]
[1741704053605,4.3586,119.52,119.44,0.05531474]
[1741704053801,8.3709,119.5,119.47,8.3722]
[1741704054007,4.3586,119.52,119.43,37.48193619]
[1741704054407,4.3586,119.52,119.46,8.3729]
[1741704054608,0.05308838,119.49,119.46,0.0544505]
[1741704055005,0.05308838,119.49,119.47,8.3725]
[1741704055208,0.05308838,119.49,119.46,0.0544505]
[1741704055811,8.352,119.81,119.46,0.0544505]
[1741704055812,457.11326651,119.58,119.46,0.0544505]
[1741704056110,8.4914,119.57,119.47,37.48193619]
[1741704056607,8.4914,119.57,119.49,8.3709]
[1741704056808,8.4914,119.57,119.47,37.48193619]
[1741704057010,8.369,119.53,119.52,0.05327105]
[1741704057307,0.05967411,119.54,119.52,0.05327105]
[1741704058103,0.05967411,119.54,119.53,8.3684]
[1741704058310,4.0564,119.6,119.52,0.05327105]
[1741704058501,12.6335,119.6,119.52,0.05327105]
[1741704058701,8.3658,119.57,119.53,8.368]
[1741704058898,12.6335,119.6,119.49,37.48193619]
[1741704059506,0.05624635,119.56,119.53,0.06285238]
[1741704061203,8.3673,119.55,119.53,0.06285238]
[1741704061403,0.05624635,119.56,119.53,0.06285238]
[1741704061708,8.3677,119.54,119.53,0.06285238]
[1741704062212,0.05624635,119.56,119.47,66.22]
[1741704062511,65.94,119.56,119.45,37.48193619]
[1741704062808,65.94,119.56,119.44,4.2792]
[1741704062809,8.3713,119.49,119.44,4.2792]
[1741704063102,37.48193619,119.55,119.43,37.48193619]
[1741704063308,0.063124,119.48,119.45,8.43809673]
[1741704063505,0.063124,119.48,119.43,37.48193619]
[1741704063710,342.16,119.56,119.45,0.06289712]
[1741704063911,0.05630546,119.47,119.45,0.06289712]
[1741704064215,25.0,119.5,119.41,37.48193619]
[1741704064502,0.0564615,119.47,119.39,4.1772]
[1741704064704,0.0564615,119.47,119.36,65.38]
[1741704064910,37.48193619,119.48,119.35,37.48193619]
[1741704065112,37.48193619,119.44,119.34,4.1772]
[1741704065298,102.74193619,119.44,119.33,128.97893282]
[1741704065500,65.26,119.44,119.33,128.97893282]
[1741704065909,8.44027894,119.4,119.37,0.05429206]
[1741704066105,0.06257894,119.4,119.37,0.05429206]
[1741704066504,8.3791,119.38,119.33,8.3823]
[1741704066704,37.48193619,119.42,119.32,4.3084]
[1741704067007,37.48193619,119.4,119.26,64.96]
[1741704067212,37.48193619,119.38,119.27,37.48193619]
[1741704067511,4.2404,119.37,119.27,37.48193619]
[1741704067711,37.48193619,119.34,119.23,37.48193619]
[1741704067906,37.48193619,119.34,119.25,37.48193619]
[1741704067907,68.9932,119.33,119.25,37.48193619]
[1741704068108,8.3839,119.31,119.26,8.3868]
[1741704068308,68.9932,119.33,119.23,37.48193619]
[1741704068510,37.48193619,119.32,119.22,4.3084]
[1741704068708,37.48193619,119.3,119.2,91.49699663]
[1741704068914,4.2404,119.29,119.2,91.49699663]
[1741704069111,0.05649721,119.26,119.24,0.06416798]
[1741704070807,104.7784334,119.26,119.17,8.393]
[1741704071114,102.20193619,119.26,119.14,37.48193619]
[1741704071313,37.48193619,119.24,119.13,4.2345]
[1741704071509,4.1822,119.25,119.13,4.2345]
[1741704071812,0.05768651,119.2,119.19,8.3923]
[1741704072015,276.38,119.29,119.18,37.53626404]
[1741704072208,12.3884,119.31,119.25,45.86933619]
[1741704072410,231.48193619,119.37,119.25,37.48193619]
[1741704072609,4.0046,119.36,119.29,37.48193619]
[1741704072808,4.0046,119.36,119.27,37.48193619]
[1741704073013,41.48653619,119.36,119.25,37.48193619]
[1741704073216,8.3854,119.29,119.21,37.48193619]
[1741704073406,37.48193619,119.34,119.23,37.48193619]
[1741704073712,67.52,119.35,119.27,37.48193619]
[1741704074106,10.80621152,119.4,119.33,37.48193619]
[1741704074311,10.80621152,119.4,119.33,105.02193619]
[1741704074510,4.0046,119.43,119.35,37.48193619]
[1741704074711,37.48193619,119.49,119.37,37.48193619]
[1741704075012,37.48193619,119.48,119.38,0.0536525]
[1741704075207,37.48193619,119.48,119.35,37.48193619]
[1741704075406,37.48193619,119.4,119.3,8.3845]
[1741704075603,104.92193619,119.4,119.27,3.9918]
[1741704075806,104.96193619,119.44,119.33,37.48193619]
[1741704076010,4.1735,119.43,119.33,37.48193619]
[1741704076209,0.06001524,119.4,119.37,0.05923612]
[1741704076807,37.48193619,119.38,119.27,71.6718]
[1741704077012,37.48193619,119.36,119.27,71.6718]
[1741704077210,4.1735,119.35,119.27,3.9918]
[1741704077509,67.72,119.34,119.25,37.48193619]
[1741704077707,67.72,119.34,119.27,37.48193619]
[1741704077909,67.72,119.34,119.23,41.47373619]
[1741704078110,8.44209947,119.31,119.28,0.05461873]
[1741704078306,0.05809947,119.31,119.28,0.05461873]
[1741704079910,8.3874,119.26,119.19,37.48193619]
[1741704080116,8.3874,119.26,119.18,4.2888]
[1741704080316,37.48193619,119.28,119.17,4.0099]
[1741704080518,4.0127,119.27,119.18,37.48193619]
[1741704080719,4.0127,119.27,119.2,37.48193619]
[1741704080914,8.3865,119.28,119.21,8.3907]
[1741704081118,67.66,119.3,119.2,37.48193619]
[1741704081316,0.0561023,119.25,119.22,0.05473327]
[1741704081619,4.3271,119.31,119.24,37.48193619]
[1741704081817,4.04,119.33,119.24,37.48193619]
[1741704082315,4.04,119.33,119.22,37.48193619]
[1741704082516,4.3271,119.35,119.25,37.48193619]
[1741704082721,37.48193619,119.32,119.2,105.08193619]
[1741704082911,0.06423548,119.29,119.26,0.06240596]
[1741704083416,37.48193619,119.34,119.24,37.48193619]
[1741704083618,71.9471,119.35,119.24,37.48193619]
[1741704083820,0.06178746,119.29,119.26,37.54582306]
[1741704084017,0.06178746,119.29,119.26,0.06388687]
[1741704084219,37.48193619,119.34,119.23,37.48193619]
[1741704084415,4.3271,119.35,119.21,8.0903]
[1741704084615,37.48193619,119.24,119.11,37.48193619]
[1741704084814,37.48193619,119.28,119.04,37.48193619]
[1741704084815,4.223,119.23,119.14,37.48193619]
[1741704085012,4.223,119.23,119.12,37.48193619]
[1741704085221,37.48193619,119.2,119.08,41.47403619]
[1741704085622,8.3932,119.18,119.09,8.3989]
[1741704085819,0.05510401,119.15,119.13,0.05345334]
[1741704086116,8.3958,119.14,119.13,0.05345334]
[1741704086417,37.48193619,119.14,118.97,613.20955638]
[1741704086619,45.87923619,119.12,119.02,4.3245]
[1741704086818,41.65963619,119.14,119.03,128.97893282]
[1741704087022,37.48193619,119.12,119.02,4.3245]
[1741704087622,0.06297453,119.08,119.06,0.05743645]
[1741704088120,67.5,119.11,119.02,4.3245]
[1741704088314,0.06380096,119.08,119.06,0.05417267]
[1741704088515,8.46390096,119.08,119.06,0.05417267]
[1741704088717,0.06380096,119.08,119.06,0.05417267]
[1741704088920,2.58380096,119.08,118.97,276.62]
[1741704089119,37.48193619,119.05,118.94,37.48193619]
[1741704089319,37.48193619,119.07,118.94,37.48193619]
[1741704089520,37.48193619,119.07,118.96,37.48193619]
[1741704089720,4.1879,119.06,118.94,37.48193619]
[1741704090120,0.05737723,119.01,118.99,0.05772082]
[1741704090327,37.48193619,119.0,118.84,37.48193619]
[1741704090521,37.48193619,118.95,118.84,37.48193619]
[1741704090720,4.3873,118.99,118.87,37.48193619]
[1741704090921,4.3873,118.99,118.88,4.0338]
[1741704091120,8.4083,118.97,118.88,12.4478]
[1741704091322,4.3873,118.99,118.89,37.48193619]
[1741704091515,0.05814952,118.94,118.91,0.06406376]
[1741704091721,8.4056,119.01,118.92,45.89303619]
[1741704091926,37.48193619,119.04,118.92,37.48193619]
[1741704092121,4.1879,119.06,118.95,37.48193619]
[1741704092315,4.1879,119.06,118.96,8.4084]
[1741704092519,4.1879,119.06,118.9,4.2698]
[1741704092825,0.06130892,118.99,118.97,0.06230044]
[1741704093228,37.54324511,118.99,118.88,4.0338]
[1741704093424,0.06130892,118.99,118.89,37.48193619]
[1741704093624,326.24193619,119.03,118.91,37.48193619]
[1741704093824,4.191,119.05,118.93,37.48193619]
[1741704094022,41.66983619,119.06,118.96,37.48193619]
[1741704094023,4.1879,119.06,118.96,37.48193619]
[1741704094226,4.1879,119.06,118.98,37.48193619]
[1741704094419,4.1879,119.06,118.98,45.88893619]
[1741704094619,4.1879,119.06,118.97,4.1653]
[1741704094620,0.05901984,119.02,119.0,0.06220453]
[1741704095224,37.54095603,119.02,118.9,37.48193619]
[1741704095427,37.54095603,119.02,118.9,45.89463619]
[1741704095624,37.48193619,118.98,118.88,4.1653]
[1741704096029,8.4795,118.97,118.88,4.1653]
[1741704096229,8.4795,118.97,118.89,37.48193619]
[1741704096427,0.06073692,118.94,118.92,0.05972465]
[1741704097034,4.0503,119.02,118.92,2.57972465]
[1741704097236,4.0503,119.02,118.93,37.48193619]
[1741704097535,4.0503,119.02,118.91,37.48193619]
[1741704097735,41.53223619,119.02,118.89,37.48193619]
[1741704098337,0.05543589,118.97,118.94,0.05409329]
[1741704098731,4.4292,119.05,118.93,37.48193619]
[1741704098932,4.4292,119.05,118.96,37.48193619]
[1741704099134,41.91113619,119.05,118.92,314.66193619]
[1741704099437,37.48193619,119.03,118.92,314.66193619]
[1741704100040,0.06055148,118.99,118.96,0.05911467]
[1741704100541,37.48193619,119.03,118.9,4.1412]
[1741704100737,0.05885106,118.99,118.96,0.05624458]
[1741704101532,37.54078725,118.99,118.88,37.48193619]
[1741704101733,8.4091,118.96,118.89,8.4132]
[1741704101936,41.95998725,118.99,118.81,5.4514]
[1741704101937,37.48193619,118.95,118.84,37.48193619]
[1741704102132,4.2223,118.95,118.86,37.48193619]
[1741704102342,41.90113619,118.99,118.88,37.48193619]
[1741704102538,4.3708,119.0,118.9,37.48193619]
[1741704102941,4.3708,119.0,118.95,8.4087]
[1741704103240,0.05877695,118.96,118.92,0.06044777]
[1741704103443,0.05877695,118.96,118.9,37.48193619]
[1741704103644,0.05877695,118.96,118.89,277.24]
[1741704103645,37.48193619,118.96,118.93,0.059463]
[1741704103844,0.05503996,118.94,118.89,8.4131]
[1741704104038,0.05503996,118.94,118.84,41.64813619]
[1741704104352,37.48193619,118.96,118.84,41.64813619]
[1741704105134,0.06090079,118.91,118.89,0.05413576]
[1741704105538,8.4097,118.95,118.9,8.4127]
[1741704105739,0.05938933,118.91,118.9,8.4127]
[1741704106045,37.48193619,118.96,118.84,41.64813619]
[1741704106242,37.48193619,118.94,118.89,0.0601412]
[1741704106444,0.05647328,118.92,118.89,0.0601412]
[1741704106637,0.05647328,118.92,118.86,8.4151]
[1741704106840,0.05647328,118.92,118.89,0.06351774]
[1741704107044,37.48193619,118.94,118.89,0.06351774]
[1741704107245,8.4122,118.91,118.89,0.06351774]
[1741704107445,0.05818091,118.92,118.89,0.06351774]
[1741704107750,0.05818091,118.92,118.89,8.47691774]
[1741704107945,0.05818091,118.92,118.89,0.06351774]
[1741704108747,8.4126,118.91,118.89,0.06351774]
[1741704108942,0.05818091,118.92,118.83,4.2051]
[1741704109252,8.4109,118.93,118.88,8.4137]
[1741704109543,37.48193619,119.0,118.88,37.48193619]
[1741704109849,4.357,119.04,118.94,37.48193619]
[1741704110048,37.48193619,119.07,118.96,37.48193619]
[1741704110352,4.357,119.08,118.96,37.48193619]
[1741704110539,37.48193619,119.07,119.0,0.05672957]
[1741704110949,37.48193619,119.05,118.95,8.7653]
[1741704111337,37.48193619,119.01,118.89,277.42]
[1741704111543,37.48193619,119.01,118.89,314.90193619]
[1741704111742,37.48193619,118.97,118.88,4.1975]
[1741704111947,37.48193619,118.97,118.89,8.413]
[1741704112249,37.48193619,118.97,118.88,4.1975]
[1741704112444,37.48193619,118.99,118.88,41.67943619]
[1741704112644,8.5763,119.0,118.9,37.48193619]
[1741704112845,37.48193619,118.99,118.88,41.67943619]
[1741704113044,8.471672,118.96,118.94,0.05798853]
[1741704113241,0.062972,118.96,118.94,0.05798853]
[1741704113547,37.48193619,118.95,118.88,4.1975]
[1741704114146,37.48193619,118.95,118.84,277.42]
[1741704114347,37.48193619,118.93,118.84,277.42]
[1741704114651,0.05567681,118.91,118.88,0.03608011]
[1741704115048,8.46817681,118.91,118.88,0.03608011]
[1741704115252,0.05567681,118.91,118.88,0.03608011]
[1741704116447,37.537613,118.91,118.88,0.03608011]
[1741704116653,37.48193619,118.89,118.74,277.48]
[1741704116954,4.3983,118.9,118.8,37.48193619]
[1741704117256,8.4142,118.88,118.8,37.48193619]
[1741704117452,8.4142,118.88,118.78,41.51283619]
[1741704117654,4.3983,118.9,118.78,41.51283619]
[1741704117856,0.06221907,118.84,118.78,4.0309]
[1741704118056,0.06221907,118.84,118.8,37.48193619]
[1741704118250,0.06221907,118.84,118.83,8.4177]
[1741704119159,0.06221907,118.84,118.82,8.4184]
[1741704119360,0.06221907,118.84,118.74,277.48]
[1741704119661,37.48193619,118.87,118.75,41.82593619]
[1741704119961,8.4167,118.85,118.75,41.82593619]
[1741704120166,0.05397556,118.8,118.75,41.82593619]
[1741704120460,0.05397556,118.8,118.78,37.48193619]
[1741704120648,4.3983,118.9,118.8,37.48193619]
[1741704120849,277.54,118.96,118.8,37.48193619]
[1741704120850,37.48193619,118.93,118.8,37.48193619]
[1741704121057,8.4128,118.9,118.78,37.48193619]
[1741704121265,8.4128,118.9,118.8,37.48193619]
[1741704121761,37.48193619,118.95,118.84,37.53591175]
[1741704121957,4.3591,118.96,118.89,8.413]
[1741704122257,37.48193619,118.93,118.85,3.9989]
[1741704122465,4.3662,118.97,118.85,194.9989]
[1741704122655,4.3662,118.97,118.87,37.48193619]
[1741704123155,0.06414844,118.93,118.91,0.06190067]
[1741704123353,4.3662,119.01,118.91,0.06190067]
[1741704123756,486.17162505,119.05,118.93,37.48193619]
[1741704123757,246.09356124,119.05,118.93,37.48193619]
[1741704124066,116.04575967,119.08,118.97,37.48193619]
[1741704124564,0.05728229,119.03,119.01,0.0556517]
[1741704124757,116.04575967,119.08,119.01,0.0556517]
[1741704125453,50.06723619,119.11,119.01,0.0556517]
[1741704125663,37.48193619,119.09,119.01,0.0556517]
[1741704125863,112.44580857,119.02,118.84,90.31537634]
[1741704126052,37.48193619,118.97,118.84,90.31537634]
[1741704126565,37.54451347,118.92,118.84,90.31537634]
[1741704126864,37.48193619,118.92,118.84,90.31537634]
[1741704127362,37.48193619,118.95,118.84,127.79731253]
[1741704127556,37.48193619,118.98,118.84,127.79731253]
[1741704127557,0.05356684,118.89,118.87,0.0617063]
[1741704128057,37.48193619,118.98,118.84,90.31537634]
[1741704128365,8.4086,118.96,118.84,98.73167634]
[1741704128565,8.4086,118.96,118.84,8.4163]
[1741704128757,0.06183261,118.92,118.9,0.05671058]
[1741704129666,37.48193619,118.91,118.79,277.48]
[1741704129964,8.4161,118.86,118.76,37.48193619]
[1741704130169,4.4113,118.9,118.79,37.48193619]
[1741704130358,4.4113,118.9,118.76,37.48193619]
[1741704130562,8.4143,118.88,118.77,8.4214]
[1741704130764,4.4113,118.9,118.76,37.48193619]
[1741704130963,0.0584967,118.84,118.82,0.05696742]
[1741704131270,4.4113,118.9,118.79,37.48193619]
[1741704131460,4.4113,118.9,118.82,0.05991389]
[1741704131667,0.05849352,118.84,118.82,0.05991389]
[1741704131962,0.05803141,118.84,118.82,37.48193619]
[1741704132165,8.4104,118.94,118.85,8.4158]
[1741704132367,37.48193619,118.96,118.85,37.48193619]
[1741704132567,37.48193619,118.94,118.83,45.94003619]
[1741704132769,8.4128,118.9,118.83,8.4581]
[1741704132970,37.48193619,118.92,118.81,277.54]
[1741704133167,4.8152003,118.91,118.83,37.48193619]
[1741704133369,0.05394019,118.88,118.85,37.54545412]
[1741704133676,4.81830586,118.95,118.87,37.48193619]
[1741704133866,1.68053104,119.01,118.89,37.48193619]
[1741704134067,4.81774102,119.0,118.91,37.48193619]
[1741704134367,4.81774102,119.0,118.88,285.9981]
[1741704134368,4.81774102,118.99,118.9,37.48193619]
[1741704134568,4.81774102,118.98,118.9,37.48193619]
[1741704134765,0.06365382,118.96,118.93,0.06240431]
[1741704135167,0.06365382,118.96,118.88,285.9981]
[1741704135367,0.06365382,118.96,118.93,8.47090851]
[1741704135562,5.72033104,119.01,118.93,0.06030851]
[1741704135767,0.06220135,118.96,118.93,0.06030851]
[1741704136066,0.06220135,118.96,118.93,0.05516771]
[1741704136772,4.82160677,118.95,118.84,37.48193619]
[1741704136967,4.81961077,118.94,118.84,37.48193619]
[1741704137164,37.48193619,118.98,118.86,37.48193619]
[1741704137368,4.82296859,118.97,118.88,37.48193619]
[1741704137669,4.8253555,118.96,118.89,8.413]
[1741704137869,37.48193619,118.98,118.86,37.48193619]
[1741704138064,0.06008714,118.94,118.91,0.05538459]
[1741704139064,4.88838273,118.94,118.91,0.05538459]
[1741704139264,0.06008714,118.94,118.91,0.05538459]
[1741704142765,4.39058714,118.94,118.91,0.05538459]
[1741704143574,12.80118714,118.94,118.91,0.05538459]
[1741704143775,4.39058714,118.94,118.91,0.05538459]
[1741704143973,74.96387238,118.92,118.77,72.79282443]
[1741704144182,37.86019027,118.8,118.76,132.21153698]
[1741704144577,37.86019027,118.77,118.76,132.21153698]
[1741704144780,37.86019027,118.77,118.76,102.54723698]
[1741704145182,40.38019027,118.77,118.74,282.00825711]
[1741704145384,0.06130264,118.78,118.75,0.0602823]
[1741704145579,0.06130264,118.78,118.74,264.31347682]
[1741704145783,46.28359027,118.75,118.74,238.77037682]
[1741704146172,46.28359027,118.75,118.65,387.67393611]
[1741704146173,48.80359027,118.75,118.65,387.67393611]
[1741704146386,292.48782611,118.74,118.65,387.67393611]
[1741704146684,37.86019027,118.7,118.65,387.67393611]
[1741704146878,4.86354509,118.73,118.7,0.05393437]
[1741704146879,0.0604368,118.73,118.7,0.05393437]
[1741704147080,37.86019027,118.72,118.7,0.05393437]
[1741704147475,37.86019027,118.72,118.7,3.437e-05]
[1741704147677,8.4262,118.71,118.7,3.437e-05]
[1741704148081,37.86019027,118.72,118.69,140.38532301]
[1741704148378,0.0604368,118.73,118.69,140.38532301]
[1741704148785,0.0604368,118.73,118.71,8.42]
[1741704148979,37.86019027,118.72,118.56,191.0]
[1741704149182,37.86019027,118.68,118.56,9.24443715]
[1741704149379,0.05997649,118.65,118.58,37.86019027]
[1741704149578,0.05997649,118.65,118.62,37.86019027]
[1741704149779,296.1256,118.72,118.62,37.86019027]
[1741704149978,0.05620242,118.65,118.58,277.8]
[1741704150187,37.86019027,118.72,118.61,37.86019027]
[1741704150483,0.05692784,118.63,118.59,37.86019027]
[1741704150678,8.4284,118.68,118.61,8.4327]
[1741704150873,0.061754,118.62,118.59,9.24443715]
[1741704151074,37.86019027,118.68,118.59,9.24443715]
[1741704151682,48.94901245,118.62,118.57,8.5188]
[1741704151879,48.94901245,118.62,118.57,46.37899027]
[1741704152281,0.05773152,118.61,118.57,55.62342742]
[1741704152480,0.05773152,118.61,118.57,46.37899027]
[1741704152682,0.05773152,118.61,118.6,8.434]
[1741704153177,76.98916429,118.61,118.6,8.434]
[1741704153488,24.79212714,118.61,118.6,8.434]
[1741704153682,11.75032714,118.61,118.6,8.434]
[1741704154283,11.75032714,118.61,118.59,8.4342]
[1741704154478,11.75032714,118.61,118.59,0.05838524]
[1741704154885,11.75032714,118.61,118.6,8.434]
[1741704155391,0.05944813,118.62,118.59,0.05838524]
[1741704155793,0.05944813,118.62,118.61,46.29349027]
[1741704155986,42.5505736,118.65,118.61,37.86019027]
[1741704156388,9.2930736,118.65,118.64,8.4312]
[1741704156585,145.39243178,118.67,118.63,37.86019027]
[1741704156787,319.9574805,118.69,118.66,37.86019027]
[1741704157095,127.65172082,118.68,118.66,37.92479452]
[1741704157493,278.02,118.67,118.47,191.0]
[1741704157786,484.5043,118.67,118.6,8.43]
[1741704157985,8.433,118.62,118.59,8.43]
[1741704158188,37.86019027,118.66,118.58,8.43]
[1741704158392,37.86019027,118.64,118.57,8.43]
[1741704158797,0.06258368,118.62,118.59,0.05976492]
[1741704158991,8.4333,118.61,118.59,0.05976492]
[1741704159193,37.86019027,118.64,118.59,0.05976492]
[1741704159393,0.06444042,118.61,118.59,0.05976492]
[1741704160796,0.06444042,118.61,118.52,37.86019027]
[1741704160993,165.51191109,118.65,118.57,8.43]
[1741704161295,165.51191109,118.65,118.58,8.43]
[1741704161594,37.86019027,118.65,118.59,8.43]
[1741704161793,398.55961674,118.67,118.61,8.43]
[1741704161992,0.061599,118.63,118.56,37.86019027]
[1741704162192,0.061599,118.63,118.58,37.86019027]
[1741704162389,0.061599,118.63,118.62,8.43]
[1741704162595,74.27832647,118.67,118.62,8.43]
[1741704162898,0.06385894,118.64,118.63,8.43]
[1741704163301,8.4299,118.66,118.63,8.43]
[1741704163500,0.05871296,118.65,118.64,8.43]
[1741704164807,0.05871296,118.65,118.51,79.3498]
[1741704164997,4.1283,118.72,118.63,37.86019027]
[1741704165409,12.5541,118.72,118.64,8.4307]
[1741704165715,4.1283,118.72,118.63,37.86019027]
[1741704166013,37.86019027,118.76,118.64,37.86019027]
[1741704166210,0.05575861,118.69,118.66,0.05871296]
[1741704166405,8.4259,118.72,118.64,37.86019027]
[1741704166606,4.4332,118.75,118.66,0.05871296]
[1741704166809,0.06151024,118.69,118.66,37.91890323]
[1741704167016,8.4266,118.71,118.66,74.84]
[1741704167209,0.05761418,118.69,118.66,74.89871296]
[1741704167713,4.3717,118.79,118.66,74.89513474]
[1741704167911,4.4332,118.78,118.68,37.86019027]
[1741704168217,42.29339027,118.78,118.68,37.86019027]
[1741704168410,42.29339027,118.78,118.66,112.70019027]
[1741704168609,4.4332,118.78,118.68,37.86019027]
[1741704169015,0.05952996,118.74,118.72,0.06353417]
[1741704169819,42.13249027,118.82,118.72,0.06353417]
[1741704170116,4.2723,118.82,118.72,37.92372444]
[1741704170317,4.2723,118.82,118.72,37.86019027]
[1741704170519,4.2723,118.82,118.74,37.86019027]
[1741704171014,4.2723,118.82,118.72,315.90019027]
[1741704171325,0.06246393,118.79,118.77,0.05838335]
[1741704171620,8.4215,118.78,118.77,0.05838335]
[1741704172220,0.06246393,118.79,118.77,0.05838335]
[1741704173118,37.86019027,118.88,118.78,37.86019027]
[1741704173315,41.89269027,118.89,118.78,37.86019027]
[1741704173515,41.89269027,118.89,118.78,42.19209027]
[1741704173716,8.4175,118.84,118.78,4.3319]
[1741704173915,37.86019027,118.87,118.78,4.3319]
[1741704174121,37.86019027,118.85,118.74,37.86019027]
[1741704174310,37.86019027,118.85,118.74,111.26019027]
[1741704174510,0.05979926,118.84,118.81,0.05738805]
[1741704174717,0.05979926,118.84,118.74,73.4]
[1741704174718,8.4189,118.82,118.74,111.26019027]
[1741704174924,0.05619684,118.84,118.81,0.05754443]
[1741704175221,37.86019027,118.87,118.74,73.4]
[1741704175522,0.06238563,118.84,118.81,0.05314758]
[1741704175720,0.06238563,118.84,118.81,8.47164758]
[1741704175919,0.06238563,118.84,118.81,0.05314758]
[1741704178024,8.4184,118.82,118.81,0.05314758]
[1741704178417,0.06238563,118.84,118.81,0.05314758]
[1741704179123,8.47968563,118.84,118.81,0.05314758]
[1741704179421,0.06238563,118.84,118.81,0.05314758]
[1741704179617,37.9225759,118.84,118.81,0.05314758]
[1741704179818,8.4184,118.82,118.81,0.05314758]
[1741704180015,0.06238563,118.84,118.76,8.4225]
[1741704180213,37.9225759,118.84,118.75,4.3876]
[1741704180420,37.86019027,118.82,118.73,8.6802]
[1741704180620,37.86019027,118.84,118.73,8.6802]
[1741704180820,37.86019027,118.86,118.74,37.86019027]
[1741704181021,37.86019027,118.84,118.73,8.6802]
[1741704181221,8.42,118.8,118.79,0.05422328]
[1741704181426,0.06041591,118.81,118.79,0.05422328]
[1741704182214,0.06041591,118.81,118.8,8.4198]
[1741704182621,0.00621637,118.81,118.8,8.4198]
[1741704183126,4.0325,118.89,118.8,40.38019027]
[1741704183315,4.0325,118.89,118.8,42.28059027]
[1741704183819,4.0325,118.89,118.81,71.46]
[1741704184021,8.1007,118.91,118.84,8.4166]
[1741704184226,0.05820867,118.86,118.84,0.06295834]
[1741704184429,45.96089027,118.91,118.84,0.06295834]
[1741704184626,0.06479419,118.86,118.84,0.06295834]
[1741704185024,8.4163,118.85,118.84,0.06295834]
[1741704185225,8.4163,118.85,118.84,5.834e-05]
[1741704185424,40.38019027,118.85,118.75,4.4376]
[1741704185725,71.5,118.87,118.75,4.4376]
[1741704185925,71.5,118.87,118.76,37.86019027]
[1741704186123,37.86019027,118.86,118.75,4.4376]
[1741704186320,37.86019027,118.84,118.75,4.4376]
[1741704186527,37.86019027,118.78,118.67,37.86019027]
[1741704186723,37.86019027,118.78,118.67,42.29779027]
[1741704187023,37.86019027,118.78,118.67,4.4376]
[1741704187224,37.86019027,118.76,118.67,4.4376]
[1741704187525,37.86019027,118.74,118.62,37.86019027]
[1741704187730,109.62019027,118.76,118.63,4.2332]
[1741704187927,0.05476405,118.73,118.7,0.05556999]
[1741704188920,71.6,118.81,118.74,8.4236]
[1741704189122,8.422,118.77,118.71,42.09339027]
[1741704189322,37.86019027,118.8,118.71,4.2332]
[1741704189727,8.4235,118.75,118.7,4.4008]
[1741704189920,71.52,118.79,118.7,12.8275]
[1741704190228,8.4262,118.72,118.71,0.0646727]
[1741704190422,0.05952089,118.74,118.65,4.0458]
[1741704190930,37.86019027,118.77,118.66,37.86019027]
[1741704191529,37.91380549,118.73,118.64,4.1473]
[1741704192024,37.86019027,118.73,118.64,4.1473]
[1741704192326,37.86019027,118.7,118.61,4.0458]
[1741704192522,37.86019027,118.68,118.59,4.4008]
[1741704192723,4.1787,118.69,118.59,4.4008]
[1741704192923,8.48682294,118.67,118.64,0.05197564]
[1741704193131,0.05722294,118.67,118.66,8.4297]
[1741704193630,0.05722294,118.67,118.64,8.48287564]
[1741704193834,0.05722294,118.67,118.64,0.05197564]
[1741704194031,0.05722294,118.67,118.64,37.91216591]
[1741704194228,0.05722294,118.67,118.66,8.4297]
[1741704194420,0.05722294,118.67,118.64,0.05197564]
[1741704194932,0.05722294,118.67,118.66,8.4297]
[1741704196530,8.4603,118.76,118.66,37.86019027]
[1741704197032,4.1016,118.76,118.68,37.86019027]
[1741704197235,37.86019027,118.8,118.7,37.86019027]
[1741704197420,4.1762,118.79,118.68,41.91159027]
[1741704197621,37.86019027,118.78,118.69,8.4273]
[1741704197828,0.06390455,118.75,118.72,0.06337508]
[1741704198135,0.06390455,118.75,118.74,8.4241]
[1741704198929,4.55e-06,118.75,118.74,8.4241]
[1741704199128,4.55e-06,118.75,118.74,46.28429027]
[1741704199325,4.0981,118.83,118.74,40.38019027]
[1741704199526,4.0981,118.83,118.78,37.86019027]
[1741704199725,4.0981,118.89,118.8,37.86019027]
[1741704200034,4.0981,118.89,118.82,37.86019027]
[1741704200235,32.22517971,118.9,118.86,8.4156]
[1741704200432,0.05406888,118.87,118.84,37.91390321]
[1741704200633,0.05406888,118.87,118.84,108.46019027]